fUSD/lending_fUSD_20260515
["ID","MTS","AMOUNT","RATE_DAILY","PERIOD"]
[422294631,1778796649000,-898.02432435,0.00035616,7]
[422294638,1778796649000,-898.0243243,0.00035616,7]
[422294649,1778796649000,-152.0,0.00035701,8]
[422294641,1778796649000,-163.89776066,0.00035659,30]
[422294639,1778796649000,-237.97922959,0.00035616,2]
[422294640,1778796649000,-219.11612179,0.00035628,120]
[422294633,1778796649000,-898.02432435,0.00035616,7]
[422294637,1778796649000,-898.02432435,0.00035616,7]
[422294630,1778796649000,-1197.3657658,0.00035616,7]
[422294634,1778796649000,-898.02432435,0.00035616,7]
[422294635,1778796649000,-898.02432435,0.00035616,7]
[422294627,1778796649000,-1197.3657658,0.00035616,7]
[422294629,1778796649000,-898.02432435,0.00035616,7]
[422294632,1778796649000,-898.02432435,0.00035616,7]
[422294714,1778796650000,-300.0,0.00037096,2]
[422294719,1778796650000,-300.0,0.00037096,2]
[422294711,1778796650000,-300.0,0.00037096,2]
[422294717,1778796650000,-300.0,0.00037096,2]
[422294704,1778796650000,-434.0663,0.00037034,2]
[422294713,1778796650000,-300.0,0.00037096,2]
[422294712,1778796650000,-300.0,0.00037096,2]
[422294715,1778796650000,-300.0,0.00037096,2]
[422294707,1778796650000,-300.0,0.00037096,2]
[422294708,1778796650000,-1094.76341147,0.00037096,2]
[422294710,1778796650000,-300.0,0.00037096,2]
[422294718,1778796650000,-300.0,0.00037096,2]
[422294722,1778796650000,-300.0,0.00037096,2]
[422294720,1778796650000,-300.0,0.00037096,2]
[422294723,1778796650000,-492.69539266,0.00037096,2]
[422294734,1778796650000,-300.0,0.00037096,2]
[422294729,1778796650000,-300.0,0.00037096,2]
[422294733,1778796650000,-527.74756033,0.00037096,2]
[422294726,1778796650000,-300.0,0.00037096,2]
[422294728,1778796650000,-604.46475032,0.00037096,2]
[422294724,1778796650000,-300.0,0.00037096,2]
[422294727,1778796650000,-300.0,0.00037096,2]
[422294725,1778796650000,-300.0,0.00037096,2]
[422294732,1778796650000,-477.93502198,0.00037096,2]
[422294706,1778796650000,-300.0,0.00037096,2]
[422294721,1778796650000,-300.0,0.00037096,2]
[422294703,1778796650000,-6076.9278,0.00037034,2]
[422294687,1778796650000,-157.0,0.00036589,30]
[422294698,1778796650000,-365.0,0.00037,2]
[422294731,1778796650000,-300.0,0.00037096,2]
[422294676,1778796650000,-200.0,0.00036454,2]
[422294678,1778796650000,-200.0,0.00036454,2]
[422294677,1778796650000,-200.0,0.00036454,2]
[422294679,1778796650000,-80000.193224,0.000365,10]
[422294683,1778796650000,-156.0,0.00036588,30]
[422294686,1778796650000,-250.0,0.00036588,30]
[422294684,1778796650000,-1026.0,0.00036588,30]
[422294681,1778796650000,-926.0,0.00036518,2]
[422294685,1778796650000,-1424.0,0.00036588,30]
[422294680,1778796650000,-1354.0,0.00036518,2]
[422294682,1778796650000,-163.0,0.00036555,11]
[422294688,1778796650000,-683.0,0.00036589,30]
[422294689,1778796650000,-163.89776069,0.00036593,30]
[422294690,1778796650000,-505.0,0.00036688,14]
[422294691,1778796650000,-216.9,0.0003669,30]
[422294693,1778796650000,-1638.09091643,0.000368,2]
[422294695,1778796650000,-158.0,0.00036942,3]
[422294696,1778796650000,-151.0,0.00036978,60]
[422294697,1778796650000,-684.63655421,0.00036986,60]
[422294694,1778796650000,-350.0,0.00036849,5]
[422294692,1778796650000,-170.28,0.00036758,10]
[422294699,1778796650000,-168.52162715,0.00037,2]
[422294709,1778796650000,-300.0,0.00037096,2]
[422294701,1778796650000,-150.0,0.00037,2]
[422294700,1778796650000,-4500.0,0.00037,2]
[422294702,1778796650000,-181.038,0.00037,2]
[422294705,1778796650000,-250.0,0.0003706,7]
[422294730,1778796650000,-300.0,0.00037096,2]
[422294716,1778796650000,-300.0,0.00037096,2]
[422294737,1778796650000,-300.0,0.00037096,2]
[422294766,1778796650000,-300.0,0.00037096,2]
[422294765,1778796650000,-1756.09027805,0.00037096,2]
[422294767,1778796650000,-300.0,0.00037096,2]
[422294782,1778796650000,-300.0,0.00037096,2]
[422294784,1778796650000,-309.84439532,0.00037096,2]
[422294771,1778796650000,-300.0,0.00037096,2]
[422294772,1778796650000,-463.8581435,0.00037096,2]
[422294783,1778796650000,-484.1034747,0.00037096,2]
[422294773,1778796650000,-300.0,0.00037096,2]
[422294777,1778796650000,-300.0,0.00037096,2]
[422294776,1778796650000,-451.91661156,0.00037096,2]
[422294774,1778796650000,-577.18639742,0.00037096,2]
[422294780,1778796650000,-300.0,0.00037096,2]
[422294775,1778796650000,-300.0,0.00037096,2]
[422294778,1778796650000,-300.0,0.00037096,2]
[422294779,1778796650000,-300.0,0.00037096,2]
[422294781,1778796650000,-300.0,0.00037096,2]
[422294785,1778796650000,-300.0,0.00037096,2]
[422294787,1778796650000,-300.0,0.00037096,2]
[422294788,1778796650000,-300.0,0.00037096,2]
[422294786,1778796650000,-300.0,0.00037096,2]
[422294791,1778796650000,-1246.37277247,0.00037096,2]
[422294790,1778796650000,-300.0,0.00037096,2]
[422294793,1778796650000,-300.0,0.00037096,2]
[422294792,1778796650000,-1094.76341147,0.00037096,2]
[422294789,1778796650000,-300.0,0.00037096,2]
[422294735,1778796650000,-1066.9267668,0.00037096,2]
[422294768,1778796650000,-300.0,0.00037096,2]
[422294763,1778796650000,-864.46544763,0.00037096,2]
[422294794,1778796650000,-300.0,0.00037096,2]
[422294764,1778796650000,-300.0,0.00037096,2]
[422294770,1778796650000,-300.0,0.00037096,2]
[422294738,1778796650000,-726.07109283,0.00037096,2]
[422294740,1778796650000,-301.79443579,0.00037096,2]
[422294744,1778796650000,-300.0,0.00037096,2]
[422294745,1778796650000,-300.0,0.00037096,2]
[422294741,1778796650000,-300.0,0.00037096,2]
[422294739,1778796650000,-300.0,0.00037096,2]
[422294743,1778796650000,-300.57306762,0.00037096,2]
[422294742,1778796650000,-300.0,0.00037096,2]
[422294747,1778796650000,-300.0,0.00037096,2]
[422294750,1778796650000,-300.0,0.00037096,2]
[422294746,1778796650000,-300.0,0.00037096,2]
[422294748,1778796650000,-300.0,0.00037096,2]
[422294736,1778796650000,-893.41080806,0.00037096,2]
[422294749,1778796650000,-380.84307617,0.00037096,2]
[422294762,1778796650000,-300.0,0.00037096,2]
[422294769,1778796650000,-310.90590822,0.00037096,2]
[422294761,1778796650000,-309.59330386,0.00037096,2]
[422294760,1778796650000,-1147.19266559,0.00037096,2]
[422294757,1778796650000,-300.0,0.00037096,2]
[422294759,1778796650000,-300.0,0.00037096,2]
[422294758,1778796650000,-300.0,0.00037096,2]
[422294755,1778796650000,-343.9837244,0.00037096,2]
[422294756,1778796650000,-526.89972735,0.00037096,2]
[422294753,1778796650000,-1912.42447208,0.00037096,2]
[422294752,1778796650000,-300.0,0.00037096,2]
[422294751,1778796650000,-949.00925633,0.00037096,2]
[422294754,1778796650000,-300.0,0.00037096,2]
[422294841,1778796651000,-300.0,0.00037096,2]
[422294842,1778796651000,-1147.19266559,0.00037096,2]
[422294834,1778796651000,-300.0,0.00037096,2]
[422294830,1778796651000,-300.0,0.00037096,2]
[422294826,1778796651000,-300.57306762,0.00037096,2]
[422294827,1778796651000,-348.83294522,0.00037096,2]
[422294831,1778796651000,-300.0,0.00037096,2]
[422294832,1778796651000,-300.0,0.00037096,2]
[422294828,1778796651000,-300.0,0.00037096,2]
[422294824,1778796651000,-300.0,0.00037096,2]
[422294829,1778796651000,-300.0,0.00037096,2]
[422294836,1778796651000,-300.0,0.00037096,2]
[422294840,1778796651000,-300.0,0.00037096,2]
[422294843,1778796651000,-309.59330386,0.00037096,2]
[422294838,1778796651000,-526.89972735,0.00037096,2]
[422294839,1778796651000,-300.0,0.00037096,2]
[422294837,1778796651000,-343.9837244,0.00037096,2]
[422294844,1778796651000,-300.0,0.00037096,2]
[422294846,1778796651000,-300.0,0.00037096,2]
[422294857,1778796651000,-300.0,0.00037096,2]
[422294845,1778796651000,-864.46544763,0.00037096,2]
[422294856,1778796651000,-577.18639742,0.00037096,2]
[422294854,1778796651000,-463.8581435,0.00037096,2]
[422294847,1778796651000,-1756.09027805,0.00037096,2]
[422294825,1778796651000,-300.0,0.00037096,2]
[422294835,1778796651000,-1912.42447208,0.00037096,2]
[422294822,1778796651000,-300.0,0.00037096,2]
[422294805,1778796651000,-300.0,0.00037096,2]
[422294823,1778796651000,-301.79443579,0.00037096,2]
[422294795,1778796651000,-300.0,0.00037096,2]
[422294797,1778796651000,-300.0,0.00037096,2]
[422294798,1778796651000,-300.0,0.00037096,2]
[422294800,1778796651000,-300.0,0.00037096,2]
[422294796,1778796651000,-300.0,0.00037096,2]
[422294799,1778796651000,-300.0,0.00037096,2]
[422294807,1778796651000,-492.69539266,0.00037096,2]
[422294806,1778796651000,-300.0,0.00037096,2]
[422294804,1778796651000,-300.0,0.00037096,2]
[422294801,1778796651000,-300.0,0.00037096,2]
[422294803,1778796651000,-300.0,0.00037096,2]
[422294802,1778796651000,-300.0,0.00037096,2]
[422294833,1778796651000,-949.00925633,0.00037096,2]
[422294809,1778796651000,-300.0,0.00037096,2]
[422294810,1778796651000,-300.0,0.00037096,2]
[422294814,1778796651000,-300.0,0.00037096,2]
[422294812,1778796651000,-604.46475032,0.00037096,2]
[422294813,1778796651000,-300.0,0.00037096,2]
[422294815,1778796651000,-300.0,0.00037096,2]
[422294817,1778796651000,-300.0,0.00037096,2]
[422294819,1778796651000,-893.41080806,0.00037096,2]
[422294820,1778796651000,-591.0094479,0.00037096,2]
[422294811,1778796651000,-300.0,0.00037096,2]
[422294816,1778796651000,-527.74756033,0.00037096,2]
[422294818,1778796651000,-1066.9267668,0.00037096,2]
[422294821,1778796651000,-726.07109283,0.00037096,2]
[422294808,1778796651000,-300.0,0.00037096,2]
[422294849,1778796651000,-300.0,0.00037096,2]
[422294848,1778796651000,-300.0,0.00037096,2]
[422294851,1778796651000,-310.90590822,0.00037096,2]
[422294888,1778796651000,-724.99268,0.000376,7]
[422294891,1778796651000,-299.892273,0.000376,7]
[422294884,1778796651000,-6076.9278,0.00037563,2]
[422294887,1778796651000,-184244.0,0.000376,30]
[422294892,1778796651000,-724.99268,0.000376,7]
[422294890,1778796651000,-724.99268,0.000376,7]
[422294893,1778796651000,-348.382631,0.000376,7]
[422294883,1778796651000,-163.0,0.00037515,11]
[422294894,1778796651000,-348.382631,0.000376,7]
[422294895,1778796651000,-348.382631,0.000376,7]
[422294901,1778796651000,-151.0,0.000376,7]
[422294897,1778796651000,-553.398143,0.000376,7]
[422294885,1778796651000,-150.0,0.00037563,2]
[422294896,1778796651000,-348.382631,0.000376,7]
[422294898,1778796651000,-553.398143,0.000376,7]
[422294899,1778796651000,-553.398143,0.000376,7]
[422294903,1778796651000,-273.541123,0.000376,7]
[422294905,1778796651000,-151.0,0.000376,7]
[422294904,1778796651000,-273.541123,0.000376,7]
[422294908,1778796651000,-151.0,0.000376,7]
[422294909,1778796651000,-191.672634,0.000376,7]
[422294907,1778796651000,-273.541123,0.000376,7]
[422294906,1778796651000,-273.541123,0.000376,7]
[422294910,1778796651000,-420.019774,0.000376,7]
[422294911,1778796651000,-420.019774,0.000376,7]
[422294850,1778796651000,-300.0,0.00037096,2]
[422294902,1778796651000,-151.0,0.000376,7]
[422294889,1778796651000,-724.99268,0.000376,7]
[422294900,1778796651000,-553.398143,0.000376,7]
[422294882,1778796651000,-1550.0,0.00037509,2]
[422294853,1778796651000,-300.0,0.00037096,2]
[422294886,1778796651000,-4410.6290143,0.0003759,2]
[422294855,1778796651000,-300.0,0.00037096,2]
[422294852,1778796651000,-300.0,0.00037096,2]
[422294858,1778796651000,-451.91661156,0.00037096,2]
[422294860,1778796651000,-300.0,0.00037096,2]
[422294869,1778796651000,-216.9,0.0003717,60]
[422294859,1778796651000,-300.0,0.00037096,2]
[422294868,1778796651000,-6076.9278,0.00037166,2]
[422294864,1778796651000,-300.0,0.00037096,2]
[422294867,1778796651000,-234126.06780192,0.000371,2]
[422294861,1778796651000,-300.0,0.00037096,2]
[422294863,1778796651000,-300.0,0.00037096,2]
[422294866,1778796651000,-322.44,0.000371,15]
[422294862,1778796651000,-300.0,0.00037096,2]
[422294865,1778796651000,-484.1034747,0.00037096,2]
[422294880,1778796651000,-213.36350281,0.00037455,120]
[422294877,1778796651000,-6076.9278,0.00037298,2]
[422294875,1778796651000,-185.42511022,0.000372,120]
[422294878,1778796651000,-152.0,0.000373,9]
[422294876,1778796651000,-505.0,0.00037274,15]
[422294874,1778796651000,-185.42511022,0.000372,120]
[422294879,1778796651000,-6076.9278,0.00037431,2]
[422294872,1778796651000,-185.42511022,0.000372,120]
[422294873,1778796651000,-185.42511022,0.000372,120]
[422294881,1778796651000,-1772.71884531,0.00037509,2]
[422294870,1778796651000,-151.0,0.00037198,5]
[422294871,1778796651000,-185.42511022,0.000372,120]
[422294956,1778796652000,-200.0,0.000381,15]
[422294957,1778796652000,-18013.0742294,0.000381,33]
[422294954,1778796652000,-6076.9278,0.00038092,2]
[422294955,1778796652000,-2111.4682609,0.000381,33]
[422294952,1778796652000,-1999.999999,0.00038,2]
[422294953,1778796652000,-365.13082857,0.00038,2]
[422294944,1778796652000,-434.0663,0.0003796,2]
[422294947,1778796652000,-151.0,0.00037997,14]
[422294943,1778796652000,-6076.9278,0.0003796,2]
[422294945,1778796652000,-151.0,0.00037978,60]
[422294942,1778796652000,-156.397207,0.0003795,30]
[422294946,1778796652000,-225.82154811,0.00037979,2]
[422294950,1778796652000,-238588.4337048,0.00038,2]
[422294959,1778796652000,-216.9,0.0003814,98]
[422294967,1778796652000,-500.0,0.00038356,2]
[422294958,1778796652000,-2445.9,0.00038125,30]
[422294951,1778796652000,-561.25873937,0.00038,30]
[422294962,1778796652000,-6076.9278,0.00038224,2]
[422294963,1778796652000,-387.29507479,0.00038329,120]
[422294961,1778796652000,-163.0,0.00038212,11]
[422294965,1778796652000,-500.0,0.00038356,2]
[422294976,1778796652000,-500.0,0.00038356,2]
[422294977,1778796652000,-500.0,0.00038356,2]
[422294966,1778796652000,-500.0,0.00038356,2]
[422294972,1778796652000,-500.0,0.00038356,2]
[422294968,1778796652000,-500.0,0.00038356,2]
[422294969,1778796652000,-500.0,0.00038356,2]
[422294949,1778796652000,-801.11980611,0.00038,2]
[422294960,1778796652000,-152.08801977,0.00038198,5]
[422294941,1778796652000,-163.0,0.0003792,11]
[422294913,1778796652000,-420.019774,0.000376,7]
[422294937,1778796652000,-505.0,0.00037859,16]
[422294964,1778796652000,-430.52404537,0.0003835,120]
[422294914,1778796652000,-1083.466321,0.000376,7]
[422294912,1778796652000,-420.019774,0.000376,7]
[422294915,1778796652000,-1083.466321,0.000376,7]
[422294916,1778796652000,-151.0,0.000376,7]
[422294918,1778796652000,-1083.466321,0.000376,7]
[422294917,1778796652000,-151.0,0.000376,7]
[422294919,1778796652000,-1083.466321,0.000376,7]
[422294920,1778796652000,-151.0,0.000376,7]
[422294921,1778796652000,-151.0,0.000376,7]
[422294922,1778796652000,-151.0,0.000376,7]
[422294924,1778796652000,-1000.0,0.00037615,2]
[422294923,1778796652000,-172.171722,0.000376,7]
[422294939,1778796652000,-150.0,0.000379,2]
[422294925,1778796652000,-1000.0,0.00037615,2]
[422294930,1778796652000,-6503.90587747,0.00037807,2]
[422294926,1778796652000,-216.9,0.0003766,82]
[422294928,1778796652000,-1444.0,0.00037753,120]
[422294929,1778796652000,-150.0,0.0003778,2]
[422294932,1778796652000,-5000.0,0.00037807,2]
[422294936,1778796652000,-6076.9278,0.00037827,2]
[422294931,1778796652000,-5000.0,0.00037807,2]
[422294934,1778796652000,-5000.0,0.00037807,2]
[422294935,1778796652000,-350.0,0.00037808,5]
[422294933,1778796652000,-5000.0,0.00037807,2]
[422294938,1778796652000,-205.67130326,0.0003788,2]
[422294940,1778796652000,-471.38866439,0.000379,120]
[422294948,1778796652000,-190.0,0.00038,2]
[422294927,1778796652000,-6076.9278,0.00037695,2]
[422294973,1778796652000,-639.98815637,0.00038356,2]
[422294975,1778796652000,-500.0,0.00038356,2]
[422294970,1778796652000,-500.0,0.00038356,2]
[422295010,1778796652000,-2090.99,0.00038356,2]
[422295016,1778796652000,-2090.99,0.00038356,2]
[422295007,1778796652000,-2090.99,0.00038356,2]
[422295014,1778796652000,-2090.99,0.00038356,2]
[422295013,1778796652000,-2090.99,0.00038356,2]
[422295012,1778796652000,-2090.99,0.00038356,2]
[422295019,1778796652000,-2091.22847976,0.00038356,2]
[422295011,1778796652000,-2090.99,0.00038356,2]
[422295017,1778796652000,-2090.99,0.00038356,2]
[422295018,1778796652000,-2090.99,0.00038356,2]
[422295015,1778796652000,-2090.99,0.00038356,2]
[422295021,1778796652000,-500.0,0.00038356,2]
[422295022,1778796652000,-463.0,0.00038356,2]
[422295027,1778796652000,-950.0,0.00038356,2]
[422295028,1778796652000,-863.0,0.00038356,2]
[422295026,1778796652000,-950.0,0.00038356,2]
[422295024,1778796652000,-200.0,0.00038356,2]
[422295030,1778796652000,-250.0,0.00038356,2]
[422295020,1778796652000,-500.0,0.00038356,2]
[422295029,1778796652000,-250.0,0.00038356,2]
[422295023,1778796652000,-200.0,0.00038356,2]
[422295031,1778796652000,-170.0,0.00038356,2]
[422295033,1778796652000,-500.0,0.00038438,30]
[422295032,1778796652000,-6076.9278,0.00038357,2]
[422295034,1778796652000,-500.0,0.00038438,30]
[422295037,1778796652000,-6076.9278,0.00038489,2]
[422295036,1778796652000,-505.0,0.00038444,16]
[422295038,1778796652000,-527.25801976,0.000385,2]
[422294971,1778796652000,-500.0,0.00038356,2]
[422295009,1778796652000,-2090.99,0.00038356,2]
[422295008,1778796652000,-2090.99,0.00038356,2]
[422295025,1778796652000,-175.0,0.00038356,2]
[422295000,1778796652000,-2090.99,0.00038356,2]
[422295006,1778796652000,-2090.99,0.00038356,2]
[422294974,1778796652000,-500.0,0.00038356,2]
[422294979,1778796652000,-500.0,0.00038356,2]
[422294989,1778796652000,-500.0,0.00038356,2]
[422294991,1778796652000,-500.0,0.00038356,2]
[422294984,1778796652000,-500.0,0.00038356,2]
[422294981,1778796652000,-500.0,0.00038356,2]
[422294980,1778796652000,-500.0,0.00038356,2]
[422295035,1778796652000,-184.96,0.00038438,30]
[422294990,1778796652000,-500.0,0.00038356,2]
[422294983,1778796652000,-500.0,0.00038356,2]
[422294982,1778796652000,-500.0,0.00038356,2]
[422294988,1778796652000,-500.0,0.00038356,2]
[422294987,1778796652000,-500.0,0.00038356,2]
[422294978,1778796652000,-500.0,0.00038356,2]
[422294986,1778796652000,-500.0,0.00038356,2]
[422295002,1778796652000,-2090.99,0.00038356,2]
[422294985,1778796652000,-439.01416516,0.00038356,2]
[422295001,1778796652000,-2090.99,0.00038356,2]
[422294996,1778796652000,-2090.99,0.00038356,2]
[422294997,1778796652000,-2090.99,0.00038356,2]
[422294999,1778796652000,-2090.99,0.00038356,2]
[422294995,1778796652000,-319.89781858,0.00038356,2]
[422294998,1778796652000,-2090.99,0.00038356,2]
[422294992,1778796652000,-500.0,0.00038356,2]
[422295003,1778796652000,-2090.99,0.00038356,2]
[422295004,1778796652000,-2090.99,0.00038356,2]
[422294994,1778796652000,-500.0,0.00038356,2]
[422294993,1778796652000,-500.0,0.00038356,2]
[422295005,1778796652000,-2090.99,0.00038356,2]
[422295060,1778796653000,-500.0,0.000387,120]
[422295069,1778796653000,-223.91,0.00038799,120]
[422295071,1778796653000,-223.91,0.00038799,120]
[422295063,1778796653000,-500.0,0.000387,120]
[422295067,1778796653000,-500.0,0.000387,120]
[422295065,1778796653000,-500.0,0.000387,120]
[422295068,1778796653000,-6076.9278,0.00038753,2]
[422295070,1778796653000,-223.91,0.00038799,120]
[422295066,1778796653000,-500.0,0.000387,120]
[422295078,1778796653000,-223.91,0.00038799,120]
[422295076,1778796653000,-223.91,0.00038799,120]
[422295075,1778796653000,-223.91,0.00038799,120]
[422295074,1778796653000,-223.91,0.00038799,120]
[422295079,1778796653000,-184244.0,0.000388,30]
[422295082,1778796653000,-6537.21945509,0.00038834,2]
[422295077,1778796653000,-223.91,0.00038799,120]
[422295073,1778796653000,-223.91,0.00038799,120]
[422295061,1778796653000,-500.0,0.000387,120]
[422295083,1778796653000,-305.0,0.00038852,11]
[422295072,1778796653000,-223.91,0.00038799,120]
[422295064,1778796653000,-500.0,0.000387,120]
[422295058,1778796653000,-500.0,0.000387,120]
[422295059,1778796653000,-500.0,0.000387,120]
[422295081,1778796653000,-930.0,0.00038818,2]
[422295043,1778796653000,-1504.144,0.00038604,52]
[422295042,1778796653000,-163.0,0.0003856,11]
[422295041,1778796653000,-456.0,0.00038538,120]
[422295040,1778796653000,-152.0,0.00038501,120]
[422295039,1778796653000,-537.96162937,0.000385,30]
[422295045,1778796653000,-6076.9278,0.00038621,2]
[422295056,1778796653000,-500.0,0.000387,120]
[422295055,1778796653000,-500.0,0.000387,120]
[422295057,1778796653000,-500.0,0.000387,120]
[422295044,1778796653000,-216.9,0.0003862,110]
[422295047,1778796653000,-163.0,0.00038685,11]
[422295049,1778796653000,-500.0,0.000387,120]
[422295050,1778796653000,-500.0,0.000387,120]
[422295051,1778796653000,-500.0,0.000387,120]
[422295052,1778796653000,-500.0,0.000387,120]
[422295054,1778796653000,-500.0,0.000387,120]
[422295048,1778796653000,-500.0,0.000387,120]
[422295053,1778796653000,-500.0,0.000387,120]
[422295062,1778796653000,-500.0,0.000387,120]
[422295080,1778796653000,-154.13187424,0.00038802,7]
[422295046,1778796653000,-239.10019373,0.00038678,30]
[422295088,1778796653000,-434.0663,0.00038886,2]
[422295109,1778796653000,-191.216409,0.00039124,120]
[422295111,1778796653000,-261.2811878,0.00039124,120]
[422295120,1778796653000,-500.0,0.00039356,120]
[422295121,1778796653000,-500.0,0.00039356,120]
[422295116,1778796653000,-421.2,0.000393,10]
[422295112,1778796653000,-203.3868328,0.00039124,120]
[422295113,1778796653000,-307.92,0.00039173,45]
[422295119,1778796653000,-150.8080621,0.00039342,30]
[422295117,1778796653000,-175.40965286,0.00039315,30]
[422295110,1778796653000,-665.2968157,0.00039124,120]
[422295129,1778796653000,-149263.21029868,0.0003949,2]
[422295118,1778796653000,-164.28960949,0.00039315,30]
[422295115,1778796653000,-150.8080621,0.00039205,30]
[422295123,1778796653000,-158.0,0.00039392,3]
[422295128,1778796653000,-689.15,0.00039444,120]
[422295122,1778796653000,-156.26345708,0.0003937,30]
[422295124,1778796653000,-23907.68,0.000394,2]
[422295127,1778796653000,-163.0,0.0003941,11]
[422295126,1778796653000,-575.0,0.00039408,11]
[422295084,1778796653000,-156.26345708,0.00038877,30]
[422295114,1778796653000,-1000.0,0.00039183,2]
[422295100,1778796653000,-163.0,0.00039005,11]
[422295125,1778796653000,-163.0,0.00039408,11]
[422295099,1778796653000,-166.0,0.00039005,11]
[422295101,1778796653000,-505.0,0.0003903,17]
[422295089,1778796653000,-152.0,0.00038898,10]
[422295095,1778796653000,-953.44673316,0.0003895,2]
[422295087,1778796653000,-6076.9278,0.00038886,2]
[422295085,1778796653000,-150.8080621,0.00038877,30]
[422295094,1778796653000,-3899.04112589,0.000389,30]
[422295086,1778796653000,-164.28960949,0.00038877,30]
[422295090,1778796653000,-2000.0,0.000389,7]
[422295093,1778796653000,-3899.04112589,0.000389,30]
[422295096,1778796653000,-151.0,0.00038978,60]
[422295091,1778796653000,-322.32121396,0.000389,30]
[422295104,1778796653000,-357.00571788,0.00039102,14]
[422295102,1778796653000,-150.8080621,0.00039041,30]
[422295092,1778796653000,-3899.0411259,0.000389,30]
[422295098,1778796653000,-363.0,0.00039,30]
[422295108,1778796653000,-156.26345708,0.00039123,30]
[422295103,1778796653000,-200.0,0.000391,16]
[422295107,1778796653000,-689.2,0.00039119,120]
[422295105,1778796653000,-216.9,0.0003911,118]
[422295097,1778796653000,-190.0,0.00039,30]
[422295106,1778796653000,-1000.0,0.00039117,120]
[422295150,1778796654000,-151.0,0.0003949,30]
[422295155,1778796654000,-163.0,0.00039492,11]
[422295149,1778796654000,-151.0,0.0003949,30]
[422295154,1778796654000,-152.0,0.00039492,30]
[422295151,1778796654000,-151.0,0.0003949,30]
[422295153,1778796654000,-152.0,0.00039492,30]
[422295152,1778796654000,-151.0,0.0003949,30]
[422295158,1778796654000,-600.0,0.00039503,60]
[422295160,1778796654000,-150.8080621,0.00039507,30]
[422295161,1778796654000,-1354.0,0.00039518,2]
[422295162,1778796654000,-926.0,0.00039518,2]
[422295159,1778796654000,-500.0,0.00039503,60]
[422295169,1778796654000,-181.55994843,0.00039611,7]
[422295168,1778796654000,-153.34029112,0.00039611,7]
[422295156,1778796654000,-150.0,0.000395,120]
[422295147,1778796654000,-151.0,0.0003949,30]
[422295137,1778796654000,-6000.0,0.0003949,2]
[422295144,1778796654000,-151.0,0.00035616,7]
[422295164,1778796654000,-169.15663355,0.00039611,7]
[422295131,1778796654000,-379.35607441,0.0003949,2]
[422295132,1778796654000,-469.73578931,0.0003949,2]
[422295130,1778796654000,-16856.07462555,0.0003949,2]
[422295133,1778796654000,-974.33676083,0.0003949,2]
[422295135,1778796654000,-5297.37439239,0.0003949,2]
[422295134,1778796654000,-1678.19997191,0.0003949,2]
[422295146,1778796654000,-110674.82715318,0.0003949,2]
[422295136,1778796654000,-347.25659751,0.0003949,2]
[422295138,1778796654000,-1585.6253758,0.0003949,2]
[422295140,1778796654000,-37005.57288514,0.0003949,2]
[422295141,1778796654000,-102154.08860006,0.0003949,2]
[422295142,1778796654000,-363.98,0.0003949,2]
[422295143,1778796654000,-1584.0,0.00032299,11]